bitfinex/quotes_SOLUSD_20250901
["timestamp","ask_amount","ask_price","bid_price","bid_amount"]
[1756716963837,55.59018854,203.29,203.28,0.12]
[1756716964846,60.50926965,203.29,203.28,0.12]
[1756716968429,54.82802697,203.15,203.14,5.58250324]
[1756716968653,15.94802697,203.15,203.14,5.58250324]
[1756716968850,54.80802697,203.15,203.14,5.58250324]
[1756716971053,15.94802697,203.15,203.14,5.58250324]
[1756716971465,13.59559401,203.23,203.14,17.88928673]
[1756716971663,13.59559401,203.18,203.15,0.66]
[1756716971979,13.59559401,203.21,203.17,2.35243296]
[1756716972143,15.94802697,203.21,203.18,0.66]
[1756716972350,15.94802697,203.19,203.14,4.92250324]
[1756716972591,2.35243296,203.15,203.13,4.92294857]
[1756716972747,2.35243296,203.14,203.11,4.9234405]
[1756716972950,2.35243296,203.12,203.11,4.9234405]
[1756716973647,2.35243296,203.13,203.11,5.5834405]
[1756716973868,54.78802697,203.14,203.11,4.9234405]
[1756716974076,54.78802697,203.14,203.12,0.66]
[1756716974260,54.78802697,203.14,203.13,0.66]
[1756716975268,2.35243296,203.15,203.13,17.89034509]
[1756716975550,52.43559401,203.15,203.14,0.66]
[1756716975773,15.94802697,203.15,203.14,0.66]
[1756716975968,13.59559401,203.15,203.14,0.66]
[1756716976159,15.94802697,203.15,203.14,0.66]
[1756716976561,15.94802697,203.15,203.13,4.92295574]
[1756716976765,41.17243296,203.14,203.13,4.92295574]
[1756716977089,38.82,203.14,203.13,4.92295574]
[1756716977272,38.82,203.14,203.1,12.30896633]
[1756716977273,41.17243296,203.14,203.12,4.9231981]
[1756716977580,41.17243296,203.14,203.13,0.66]
[1756716977784,13.59559401,203.15,203.13,0.66]
[1756716977960,52.41559401,203.15,203.13,0.66]
[1756716978157,2.35243296,203.16,203.13,0.66]
[1756716978464,41.17243296,203.16,203.13,0.66]
[1756716978791,41.17243296,203.16,203.11,2.47243296]
[1756716978792,13.59559401,203.13,203.11,0.12]
[1756716978981,54.74802697,203.12,203.11,0.12]
[1756716979788,55.42802697,203.12,203.11,0.12]
[1756716980664,55.57018854,203.12,203.11,0.12]
[1756716980859,81.57018854,203.12,203.11,0.12]
[1756716981058,39.59559401,203.09,203.08,0.12]
[1756716981305,0.14216157,203.07,203.06,0.12]
[1756716981462,45.1226215,203.07,203.06,0.12]
[1756716981665,42.77018854,203.07,203.06,0.12]
[1756716981895,81.57018854,203.07,203.06,0.12]
[1756716982188,79.21775558,203.07,203.06,0.12]
[1756716982375,81.57018854,203.07,203.06,0.12]
[1756716982889,83.9226215,203.07,203.06,0.12]
[1756716983392,83.9226215,203.07,202.96,5.587068]
[1756716983393,39.73775558,203.03,202.96,5.587068]
[1756716983687,2.35243296,202.97,202.96,5.587068]
[1756716983881,15.94802697,202.97,202.96,5.587068]
[1756716984789,54.74802697,202.97,202.96,5.587068]
[1756716984975,54.74802697,202.97,202.96,4.927068]
[1756716985370,13.59559401,202.96,202.94,4.92756479]
[1756716985570,2.35243296,202.95,202.94,4.92756479]
[1756716985971,15.94802697,202.95,202.94,4.92756479]
[1756716986174,54.76802697,202.95,202.94,4.92756479]
[1756716986695,54.76802697,202.95,202.94,5.58756479]
[1756716987396,13.59559401,202.94,202.93,4.92780761]
[1756716987593,15.94802697,202.94,202.93,5.58780761]
[1756716987968,54.76802697,202.94,202.93,5.58780761]
[1756716988166,26.14216157,202.99,202.93,5.58780761]
[1756716988505,2.35243296,202.94,202.93,5.58780761]
[1756716988676,54.76802697,202.94,202.93,5.58780761]
[1756716989273,41.17243296,202.94,202.93,5.58780761]
[1756716989996,38.82,202.94,202.93,5.58780761]
[1756716990297,52.39559401,202.95,202.93,17.90732665]
[1756716990671,13.59559401,202.95,202.94,0.66]
[1756716990874,52.39559401,202.95,202.94,0.66]
[1756716991288,13.59559401,202.95,202.94,5.58756479]
[1756716991484,52.37559401,202.95,202.94,5.58756479]
[1756716991872,54.72802697,202.95,202.94,5.58756479]
[1756716993682,13.47556934,202.95,202.94,17.90647678]
[1756716993880,134.84216157,203.02,202.94,17.90647678]
[1756716993881,13.59559401,202.96,202.94,17.90647678]
[1756716994193,13.59559401,202.96,202.95,0.66]
[1756716994401,15.94802697,202.96,202.94,17.24647678]
[1756716994593,13.59559401,202.96,202.94,17.24647678]
[1756716994804,15.94802697,202.96,202.94,18.02647678]
[1756716995499,2.35243296,202.95,202.94,18.02647678]
[1756716997782,2.35243296,202.98,202.94,18.02647678]
[1756716997990,134.7,203.02,202.96,2.35243296]
[1756716997991,13.59559401,203.01,202.96,2.35243296]
[1756716998193,54.64802697,203.01,202.97,0.66]
[1756716998385,54.64802697,203.01,202.98,0.66]
[1756716998587,15.94802697,203.01,202.99,0.66]
[1756716999079,41.77243296,203.0,202.94,18.02647678]
[1756716999395,2.35243296,202.99,202.94,18.02647678]
[1756716999700,0.35243296,202.99,202.96,4.92707922]
[1756716999898,0.35243296,202.99,202.97,0.66]
[1756717000104,38.72,203.0,202.96,17.24477728]
[1756717000301,41.07243296,203.0,202.96,17.90477728]
[1756717000604,15.94802697,202.97,202.96,4.92707922]
[1756717001700,13.59559401,202.96,202.95,4.927322]
[1756717002291,13.59559401,202.96,202.95,5.587322]
[1756717002904,13.59559401,202.97,202.95,5.587322]
[1756717003584,15.94802697,202.97,202.95,5.587322]
[1756717003785,41.03243296,202.99,202.96,0.66]
[1756717004089,13.59559401,202.98,202.97,0.66]
[1756717004290,54.60802697,203.01,202.98,0.66]
[1756717004476,2.35243296,203.0,202.98,0.66]
[1756717004682,2.35243296,202.99,202.95,41.882237]
[1756717004921,2.35243296,202.99,202.96,0.66]
[1756717005211,2.35243296,202.99,202.97,0.66]
[1756717005710,52.25559401,203.01,202.98,4.92659375]
[1756717006004,2.35243296,202.99,202.98,4.92659375]
[1756717007705,2.35243296,202.99,202.96,4.92707922]
[1756717008084,2.35243296,202.97,202.96,4.92707922]
[1756717009316,16.64802697,202.97,202.96,4.92707922]
[1756717009504,13.59559401,202.96,202.94,5.04735119]
[1756717009813,40.99243296,202.95,202.94,5.04735119]
[1756717009997,54.58802697,202.95,202.94,5.04735119]
[1756717011422,2.35243296,202.96,202.94,17.36626318]
[1756717011588,2.35243296,202.96,202.94,18.02626318]
[1756717011787,13.59559401,202.95,202.94,17.36626318]
[1756717012396,15.94802697,202.95,202.94,17.36626318]
[1756717014209,15.94802697,202.95,202.94,5.04735119]
[1756717017009,16.60802697,202.95,202.94,5.04735119]
[1756717017410,15.94802697,202.95,202.94,5.04735119]
[1756717018434,16.60802697,202.95,202.94,5.04735119]
[1756717018910,16.60802697,202.95,202.94,0.12]
[1756717019310,16.60802697,202.95,202.94,5.04756479]
[1756717019512,15.94802697,202.95,202.94,5.04756479]
[1756717019729,16.60802697,202.95,202.94,0.12]
[1756717020699,13.59559401,202.95,202.94,0.12]
[1756717020894,54.54802697,202.95,202.94,5.04756479]
[1756717021823,52.19559401,202.95,202.94,5.04756479]
[1756717022014,13.59559401,202.95,202.94,5.04756479]
[1756717022211,54.54802697,202.95,202.94,5.04756479]
[1756717022607,15.94802697,202.95,202.94,5.04756479]
[1756717022810,54.54802697,202.95,202.94,5.04756479]
[1756717023534,15.94802697,202.95,202.94,5.04756479]
[1756717023708,52.19559401,202.95,202.94,5.74756479]
[1756717023905,13.59559401,202.95,202.94,5.74756479]
[1756717025830,13.59559401,202.95,202.94,5.04756479]
[1756717026344,13.59559401,202.95,202.94,5.74756479]
[1756717027037,13.59559401,202.95,202.94,5.04756479]
[1756717027834,13.59559401,202.95,202.94,5.74756479]
[1756717028035,13.59559401,202.95,202.94,5.04756479]
[1756717028344,15.94802697,202.95,202.94,5.04756479]
[1756717029307,13.59559401,202.95,202.94,5.04756479]
[1756717029633,13.59559401,202.95,202.94,5.74756479]
[1756717030138,137.05243296,202.98,202.94,5.74756479]
[1756717030345,134.7,202.98,202.95,2.35243296]
[1756717030551,134.7,202.98,202.96,0.7]
[1756717030739,148.29559401,202.98,202.97,0.7]
[1756717031842,148.29559401,202.98,202.97,4.92683647]
[1756717034025,148.29559401,202.98,202.96,4.92707922]
[1756717034216,148.29559401,202.98,202.96,5.62707922]
[1756717036857,148.29559401,202.98,202.95,4.927322]
[1756717036858,55.20802697,202.97,202.95,4.927322]
[1756717037139,15.94802697,202.96,202.95,4.927322]
[1756717037446,16.60802697,202.96,202.95,4.927322]
[1756717039221,14.25559401,202.96,202.95,4.927322]
[1756717039736,16.60802697,202.96,202.95,4.927322]
[1756717041128,15.94802697,202.96,202.95,4.927322]
[1756717041330,13.59559401,202.96,202.95,4.927322]
[1756717042918,14.30559401,202.96,202.95,4.927322]
[1756717044527,13.59559401,202.96,202.95,4.927322]
[1756717045153,14.30559401,202.96,202.95,4.927322]
[1756717045563,16.65802697,202.96,202.95,4.927322]
[1756717046266,15.94802697,202.96,202.95,4.927322]
[1756717046961,16.65802697,202.96,202.95,4.927322]
[1756717048949,54.54802697,202.96,202.95,4.927322]
[1756717050560,13.59559401,202.96,202.95,5.647322]
[1756717051358,13.59559401,202.96,202.95,4.927322]
[1756717051945,13.59559401,202.96,202.95,5.647322]
[1756717052284,13.59559401,202.96,202.95,5.767322]
[1756717053259,40.95243296,202.97,202.95,5.767322]
[1756717053260,134.7,202.98,202.95,5.767322]
[1756717053574,13.59559401,202.97,202.95,5.767322]
[1756717053777,173.3,202.98,202.96,0.72]
[1756717053983,148.29559401,202.98,202.97,0.72]
[1756717054794,134.7,202.98,202.97,0.72]
[1756717055000,0.03,202.99,202.97,3.07243296]
[1756717055161,52.22559401,203.02,202.97,3.07243296]
[1756717055362,13.62559401,203.02,202.98,17.96307813]
[1756717055581,13.62559401,203.02,202.99,0.72]
[1756717055907,13.62559401,203.02,203.0,0.72]
[1756717056474,13.62559401,203.02,203.01,0.72]
[1756717056766,13.62559401,203.02,202.99,0.72]
[1756717056966,13.62559401,203.02,203.0,0.72]
[1756717057379,15.97802697,203.02,203.01,4.92586572]
[1756717057788,13.62559401,203.02,203.01,4.92586572]
[1756717059590,13.62559401,203.02,203.0,4.92610837]
[1756717059778,13.62559401,203.02,203.0,5.64610837]
[1756717061404,0.03,203.02,203.0,5.64610837]
[1756717062692,2.38243296,203.02,203.0,5.64610837]
[1756717063983,2.35243296,203.01,203.0,4.92610837]
[1756717064372,0.03,203.02,203.0,4.92610837]
[1756717064573,2.35243296,203.01,202.99,4.92635105]
[1756717065379,13.59559401,203.06,203.0,3.07243296]
[1756717065582,2.35243296,203.07,203.02,26.0]
[1756717065896,38.58,203.06,203.03,26.72]
[1756717066191,123.98015693,203.09,203.03,26.72]
[1756717066192,54.52802697,203.08,203.04,0.72]
[1756717066391,52.17559401,203.08,203.04,15.517643]
[1756717066572,54.52802697,203.08,203.06,4.92465281]
[1756717067864,52.17559401,203.08,203.06,4.92465281]
[1756717068294,3.06243296,203.07,203.06,4.92465281]
[1756717068477,3.06243296,203.07,203.04,4.9251379]
[1756717068478,16.65802697,203.07,203.04,4.9251379]
[1756717068680,2.35243296,203.05,203.04,4.9251379]
[1756717069094,52.86559401,203.05,203.03,4.92536797]
[1756717069319,3.06243296,203.04,203.03,4.92536797]
[1756717069471,13.59559401,203.03,202.99,4.92635105]
[1756717069672,2.35243296,203.0,202.99,4.92635105]
[1756717070181,3.06243296,203.0,202.99,4.92635105]
[1756717070504,2.35243296,203.0,202.99,4.92635105]
[1756717070666,2.35243296,203.0,202.98,4.92659375]
[1756717070870,2.35243296,203.01,202.98,4.92659375]
[1756717071296,2.35243296,203.0,202.98,4.92659375]
[1756717072067,2.35243296,203.0,202.98,17.94307813]
[1756717072395,2.35243296,203.01,202.98,17.94307813]
[1756717072576,2.35243296,203.01,203.0,26.0]
[1756717074297,2.35243296,203.01,203.0,30.92610837]
[1756717074490,52.82559401,203.03,203.01,26.0]
[1756717074802,15.94802697,203.02,203.01,26.0]
[1756717075170,16.61802697,203.02,203.01,26.0]
[1756717075689,15.94802697,203.02,203.01,26.0]
[1756717076807,15.94802697,203.02,203.01,30.92586572]
[1756717078519,15.94802697,203.02,203.01,4.92586572]
[1756717078804,16.61802697,203.02,202.99,4.92635105]
[1756717079007,2.35243296,203.0,202.99,4.92635105]
[1756717079703,3.02243296,203.0,202.99,4.92635105]
[1756717079891,2.35243296,203.0,202.99,4.92635105]
[1756717080279,2.35243296,203.01,202.99,4.92635105]
[1756717080604,2.35243296,203.0,202.99,4.92635105]
[1756717080778,2.35243296,203.01,202.99,0.7]
[1756717081305,2.35243296,203.0,202.98,5.62659375]
[1756717081688,2.35243296,203.0,202.98,4.92659375]
[1756717081885,2.35243296,203.01,202.98,5.62659375]
[1756717082122,109.67456292,203.07,202.99,0.7]
[1756717082334,109.67456292,203.07,203.01,2.35243296]
[1756717082508,40.94243296,203.08,203.02,3.05243296]
[1756717082828,0.03,203.08,203.03,20.29126465]
[1756717082997,2.38243296,203.08,203.04,0.7]
[1756717083196,2.38243296,203.08,203.05,0.7]
[1756717085009,2.35243296,203.07,203.06,4.92465281]
[1756717086055,2.38243296,203.08,203.06,4.92465281]
[1756717086319,0.03,203.08,203.07,0.7]
[1756717086521,0.03,203.08,203.06,19.72083581]
[1756717086822,0.03,203.08,203.06,20.42083581]
[1756717087126,2.38243296,203.08,203.06,19.72083581]
[1756717087327,2.38243296,203.08,203.06,5.62465281]
[1756717087533,0.03,203.08,203.06,5.62465281]
[1756717087703,2.38243296,203.08,203.06,5.62465281]
[1756717088402,2.38243296,203.08,203.06,4.92465281]
[1756717088907,2.38243296,203.08,203.06,5.62465281]
[1756717089120,0.03,203.08,203.06,5.62465281]
[1756717089320,0.03,203.08,203.07,0.7]
[1756717090836,0.03,203.08,203.07,5.6244103]
[1756717091148,0.03,203.11,203.07,20.28786901]
[1756717091335,0.03,203.11,203.08,0.7]
[1756717091924,2.38243296,203.11,203.07,55.77543605]
[1756717092131,2.35243296,203.08,203.07,4.9244103]
[1756717092540,0.67,203.1,203.07,4.9244103]
[1756717092829,2.35243296,203.09,203.06,4.92465281]
[1756717093039,2.35243296,203.09,203.06,5.62465281]
[1756717093638,2.35243296,203.09,203.06,19.22024681]
[1756717094232,2.35243296,203.09,203.06,5.62465281]
[1756717094432,2.35243296,203.09,203.06,7.97708581]
[1756717094758,2.35243296,203.08,203.06,7.97708581]
[1756717095158,2.35243296,203.08,203.06,7.27708581]
[1756717095833,3.02243296,203.08,203.06,7.27708581]
[1756717096233,2.35243296,203.08,203.06,7.27708581]
[1756717097154,3.02243296,203.08,203.06,4.92465281]
[1756717097731,0.67,203.08,203.06,4.92465281]
[1756717098030,2.35243296,203.08,203.06,4.92465281]
[1756717098255,2.35243296,203.09,203.06,5.62465281]
[1756717098435,0.03,203.11,203.07,0.7]
[1756717098758,2.35243296,203.1,203.07,0.7]
[1756717100153,0.03,203.11,203.08,5.62416781]
[1756717100329,0.03,203.11,203.08,7.97660077]
[1756717100535,0.03,203.11,203.09,0.7]
[1756717101029,0.03,203.11,203.09,3.05243296]
[1756717101228,0.03,203.11,203.1,2.35243296]
[1756717101463,0.03,203.11,203.1,0.7]
[1756717102136,0.03,203.11,203.1,5.62368291]
[1756717104159,1e-08,203.11,203.1,10.32854887]
[1756717105256,1e-08,203.11,203.1,10.47071044]
[1756717106865,1e-08,203.11,203.1,48.82854887]
[1756717107355,1e-08,203.11,203.1,46.47611591]
[1756717107555,1e-08,203.11,203.1,43.42368291]
[1756717107758,1e-08,203.11,203.1,4.92368291]
[1756717107944,1e-08,203.11,203.1,43.42368291]
[1756717108148,1e-08,203.11,203.1,44.11368291]
[1756717108571,1e-08,203.11,203.1,43.42368291]
[1756717108861,1e-08,203.11,203.1,44.11368291]
[1756717110542,0.1,203.2,203.13,26.0]
[1756717110863,0.1,203.2,203.19,2.35243296]
[1756717111044,0.1,203.2,203.19,40.85243296]
[1756717111241,0.1,203.2,203.19,41.54243296]
[1756717113471,0.1,203.2,203.19,46.463935]
[1756717113655,0.1,203.2,203.19,48.816368]
[1756717114758,0.1,203.2,203.19,46.463935]
[1756717116282,1e-08,203.2,203.19,46.463935]
[1756717116580,1e-08,203.2,203.19,61.247723]
[1756717119652,1e-08,203.2,203.19,61.227723]
[1756717120482,1e-08,203.2,203.19,22.747723]
[1756717120685,1e-08,203.2,203.19,61.227723]
[1756717122779,1e-08,203.2,203.19,45.753935]
[1756717122977,1e-08,203.2,203.19,43.40150204]
[1756717125275,3.04243297,203.2,203.18,6.89304164]
[1756717125476,3.04243296,203.19,203.18,4.92167664]
[1756717125677,1e-08,203.2,203.18,4.92167664]
[1756717125854,1e-08,203.2,203.19,38.46]
[1756717126280,1e-08,203.2,203.19,41.50243296]
[1756717126786,1e-08,203.2,203.19,43.47370096]
[1756717127286,1e-08,203.2,203.19,48.395203]
[1756717129007,1e-08,203.2,203.19,6.89277004]
[1756717129180,1e-08,203.2,203.19,43.38150204]
[1756717129978,0.69000001,203.2,203.19,43.38150204]
[1756717130397,0.69000001,203.2,203.19,4.92150204]
[1756717132378,3.04243297,203.2,203.19,4.92150204]
[1756717132575,1e-08,203.2,203.19,4.92150204]
[1756717132782,1e-08,203.2,203.19,7.953935]
[1756717133389,1e-08,203.2,203.19,10.996368]
[1756717133590,1e-08,203.2,203.19,7.953935]
[1756717133805,1e-08,203.2,203.19,9.925301]
[1756717134869,1e-08,203.2,203.19,7.57286804]
[1756717135075,1e-08,203.2,203.19,9.925301]
[1756717138179,1e-08,203.2,203.19,48.385301]
[1756717139507,1e-08,203.2,203.19,6.89286804]
[1756717139691,1e-08,203.2,203.19,46.413935]
[1756717140092,1e-08,203.2,203.19,49.426368]
[1756717140903,1e-08,203.2,203.19,10.286368]
[1756717141097,1e-08,203.2,203.19,48.726368]
[1756717141301,1e-08,203.2,203.19,49.406368]
[1756717141610,1e-08,203.2,203.19,48.726368]
[1756717141777,1e-08,203.2,203.19,49.406368]
[1756717142986,1e-08,203.2,203.19,49.54852957]
[1756717143186,1e-08,203.23,203.19,20.91769014]
[1756717143403,0.66,203.22,203.21,26.0]
[1756717143607,1e-08,203.23,203.21,38.44]
[1756717143804,3.01243297,203.23,203.21,43.36101766]
[1756717144104,0.66,203.22,203.21,43.36101766]
[1756717144418,1e-08,203.23,203.21,43.36101766]
[1756717144715,0.66000001,203.23,203.21,43.36101766]
[1756717145609,0.66000001,203.23,203.19,15.3161881]
[1756717145610,3.01243296,203.22,203.19,4.92126026]
[1756717145912,2.35243296,203.2,203.18,4.92171157]
[1756717146142,3.01243296,203.19,203.13,12.30710522]
[1756717146418,2.35243296,203.16,203.15,38.44]
[1756717146884,0.66,203.18,203.13,12.30710522]
[1756717147084,3.01243296,203.17,203.15,38.44]
[1756717147388,2.35243296,203.18,203.15,43.36247108]
[1756717147589,1e-08,203.23,203.17,2.35243296]
[1756717147913,1e-08,203.23,203.19,2.35243296]
[1756717148108,1e-08,203.23,203.2,38.44]
[1756717148426,1e-08,203.23,203.16,14.904516]
[1756717148427,13.59559401,203.17,203.16,0.12]
[1756717148727,16.45802697,203.17,203.16,0.12]
[1756717149288,21.38001348,203.17,203.16,0.12]
[1756717150511,16.45802697,203.17,203.16,0.12]
[1756717153397,13.59559401,203.19,203.16,5.04213636]
[1756717153657,13.59559401,203.2,203.16,5.04213636]
[1756717153794,2.35243296,203.2,203.17,0.68]
[1756717154402,2.35243296,203.19,203.17,0.68]
[1756717154820,2.35243296,203.18,203.17,0.68]
[1756717155127,2.35243296,203.19,203.17,0.68]
[1756717155496,2.35243296,203.19,203.18,4.92174426]
[1756717157298,2.35243296,203.19,203.17,4.92198651]
[1756717157509,2.35243296,203.18,203.17,5.60198651]
[1756717160932,2.35243296,203.21,203.17,17.90695279]
[1756717161117,2.35243296,203.21,203.18,0.68]
[1756717161315,2.35243296,203.21,203.17,32.01292579]
[1756717161517,2.35243296,203.21,203.19,0.68]
[1756717161922,1e-08,203.23,203.2,39.49]
[1756717162245,2.35243297,203.23,203.2,39.49]
[1756717162423,2.35243297,203.23,203.21,39.49]
[1756717162735,2.35243296,203.22,203.21,43.70101766]
[1756717163137,2.35243296,203.22,203.21,4.92101766]
[1756717163336,2.35243296,203.22,203.21,44.41101766]
[1756717164343,2.35243296,203.22,203.21,43.70101766]
[1756717164541,2.35243296,203.22,203.21,4.92101766]
[1756717164845,2.35243296,203.22,203.16,0.12]
[1756717164846,5.21486592,203.22,203.18,43.70174426]
[1756717165138,2.35243296,203.19,203.18,4.92174426]
[1756717165823,2.35243296,203.19,203.18,5.63174426]
[1756717166533,2.35243296,203.19,203.18,5.75174426]
[1756717166930,2.35243296,203.19,203.18,5.04174426]
[1756717167527,2.35243296,203.19,203.18,5.75174426]
[1756717170748,2.35243296,203.2,203.18,18.05610492]
[1756717170947,2.35243296,203.2,203.19,0.71]
[1756717171946,13.59559402,203.23,203.19,39.41]
[1756717172149,2.35243296,203.2,203.19,38.7]
[1756717172746,2.35243296,203.2,203.19,43.62150204]
[1756717173245,2.35243296,203.2,203.19,44.33150204]
[1756717174919,2.35243296,203.2,203.19,56.63525714]
[1756717176031,2.35243296,203.21,203.19,56.63525714]
[1756717176257,2.35243296,203.21,203.2,5.63125984]
[1756717176946,2.35243296,203.21,203.2,44.29125984]
[1756717178342,1e-08,203.23,203.2,44.29125984]
[1756717178549,2.35243296,203.21,203.2,44.29125984]
[1756717182760,1e-08,203.23,203.2,44.29125984]
[1756717182967,2.35243296,203.21,203.2,43.58125984]
[1756717183555,2.35243296,203.21,203.2,44.29125984]
[1756717185974,0.03,203.21,203.2,44.29125984]
[1756717186474,2.38243296,203.21,203.2,43.58125984]
[1756717186777,2.38243296,203.21,203.2,44.29125984]
[1756717186944,2.38243296,203.21,203.2,44.19125984]
[1756717187378,0.03,203.21,203.2,44.19125984]
[1756717187582,0.03,203.21,203.2,44.17125984]
[1756717187986,0.03,203.21,203.2,5.63125984]
[1756717188196,2.38243296,203.21,203.2,44.17125984]
[1756717189484,0.03,203.21,203.2,44.17125984]
[1756717190381,0.03,203.21,203.2,44.13125984]
[1756717191216,0.03,203.21,203.2,5.63125984]
[1756717191353,0.03,203.21,203.2,44.13125984]
[1756717191562,2.38243296,203.21,203.2,44.13125984]
[1756717193482,2.38243296,203.21,203.2,44.10125984]
[1756717194782,1e-08,203.21,203.2,44.10125984]
[1756717194988,1e-08,203.21,203.2,46.4536928]
[1756717195900,1e-08,203.21,203.2,70.24342141]
[1756717196209,1e-08,203.21,203.2,72.59585437]
[1756717196881,1e-08,203.25,203.23,26.0]
[1756717197090,2.35243296,203.3,203.24,40.83243296]
[1756717197389,2.38243296,203.29,203.25,38.48]
[1756717197593,2.38243296,203.29,203.26,4.91980714]
[1756717197774,2.38243296,203.29,203.26,5.59980714]
[1756717198496,0.03,203.29,203.26,44.07980714]
[1756717200102,2.38243296,203.29,203.26,44.07980714]
[1756717200404,2.38243296,203.27,203.26,43.39980714]
[1756717200604,0.03,203.27,203.26,44.07980714]
[1756717201308,0.03,203.29,203.26,72.4322401]
[1756717201309,1e-08,203.28,203.26,72.4322401]
[1756717201602,0.03,203.32,203.27,3.03243296]
[1756717201784,0.03,203.32,203.28,55.67763085]
[1756717201976,2.38243296,203.32,203.28,56.35763085]
[1756717202179,2.38243296,203.32,203.29,0.68]
[1756717202377,2.38243296,203.32,203.3,39.16]
[1756717202604,0.03,203.32,203.31,0.68]
[1756717202904,2.38243296,203.35,203.33,26.0]
[1756717203099,0.03,203.37,203.34,38.46]
[1756717203410,0.03,203.37,203.35,38.48]
[1756717203612,0.03,203.37,203.36,38.48]
[1756717203816,0.03,203.37,203.36,44.07738788]
[1756717204702,0.03,203.39,203.36,5.59738788]
[1756717204916,0.03,203.39,203.38,26.0]
[1756717205120,0.03,203.39,203.38,64.7]
[1756717205322,0.03,203.39,203.38,65.38]
[1756717205922,0.03,203.39,203.38,70.29690431]
[1756717206903,1e-08,203.39,203.38,72.64933727]
[1756717207109,2.35243297,203.39,203.38,4.91690431]
[1756717207412,2.89243297,203.39,203.35,38.92]
[1756717207725,2.35243296,203.36,203.34,43.83787154]
[1756717207929,2.89243296,203.35,203.32,38.94]
[1756717208117,2.35243296,203.33,203.32,38.94]
[1756717208511,2.35243296,203.33,203.31,43.85859721]
[1756717208733,2.35243296,203.32,203.31,43.85859721]
[1756717209131,0.54,203.37,203.31,43.85859721]
[1756717209428,2.35243296,203.32,203.31,43.85859721]
[1756717209626,1e-08,203.39,203.34,26.0]
[1756717209835,1e-08,203.39,203.35,41.35243296]
[1756717210007,1e-08,203.39,203.36,4.91738788]
[1756717210201,1e-08,203.39,203.37,39.04]
[1756717210408,1e-08,203.39,203.38,2.35243296]
[1756717210622,1e-08,203.39,203.38,3.03243296]
[1756717210831,1e-08,203.39,203.38,0.68]
[1756717211018,1e-08,203.4,203.38,3.03243296]
[1756717211219,1e-08,203.4,203.39,39.04]
[1756717211527,1e-08,203.4,203.39,42.07243296]
[1756717211930,1e-08,203.4,203.39,44.63666256]
[1756717212245,1e-08,203.4,203.39,46.98909552]
[1756717212838,1e-08,203.4,203.39,47.13125709]
[1756717213212,1e-08,203.4,203.39,49.10019709]
[1756717213633,1e-08,203.48,203.42,26.0]
[1756717213930,1e-08,203.48,203.47,7.40932397]
[1756717214122,1e-08,203.48,203.47,4.91472944]
[1756717214324,1e-08,203.48,203.39,69.22012932]
[1756717214325,2.89243297,203.48,203.46,4.91492853]
[1756717214537,2.35243296,203.47,203.46,4.91492853]
[1756717215115,1e-08,203.48,203.46,5.59492853]
[1756717215328,1e-08,203.48,203.46,4.91492853]
[1756717215641,1e-08,203.48,203.47,39.1]
[1756717215820,1e-08,203.48,203.47,39.78]
[1756717216009,1e-08,203.48,203.47,44.69472944]
[1756717216205,1e-08,203.48,203.47,44.01472944]
[1756717216430,1e-08,203.48,203.47,44.69472944]
[1756717216810,1e-08,203.48,203.47,47.0471624]
[1756717217011,1e-08,203.48,203.47,73.18932397]
[1756717217625,41.64842606,203.7,203.51,0.14216157]
[1756717217848,2.35243296,203.6,203.54,2.35243296]
[1756717218047,2.35243296,203.58,203.56,4.91255649]
[1756717218457,2.35243296,203.57,203.56,4.91255649]
[1756717219353,2.89243296,203.57,203.54,39.12]
[1756717219662,2.35243296,203.55,203.54,39.12]
[1756717219863,13.59559401,203.54,203.49,4.9142464]
[1756717220047,2.35243296,203.5,203.49,44.0342464]
[1756717220250,0.54,203.56,203.49,56.3198624]
[1756717220456,2.35243296,203.52,203.49,56.3198624]
[1756717220829,2.35243296,203.5,203.44,4.91545418]
[1756717221054,2.35243296,203.51,203.45,42.17243296]
[1756717221553,2.35243296,203.5,203.45,42.17243296]
[1756717221750,2.35243296,203.5,203.46,0.71]
[1756717221955,14.13559401,203.54,203.47,39.18]
[1756717222159,2.35243296,203.5,203.48,4.94448791]
[1756717222330,2.35243296,203.49,203.48,4.94448791]
[1756717222530,2.35243296,203.49,203.48,0.03]